bitfinex-derivatives/quotes_BNBF0:USTF0_20250507
["timestamp","ask_amount","ask_price","bid_price","bid_amount"]
[1746613727748,1.00909862,604.48,604.03,2.70610938]
[1746613728054,0.28796743,604.72,604.03,2.70610938]
[1746613728055,1.00909862,604.47,604.03,2.70610938]
[1746613728355,1.00909862,604.47,604.03,0.89310938]
[1746613728748,1.00909862,604.46,604.03,0.89310938]
[1746613729053,1.00909862,604.46,604.03,0.33110938]
[1746613729453,1.00909862,604.45,604.03,0.33110938]
[1746613730354,1.00909862,604.44,604.03,0.33110938]
[1746613730854,1.00909862,604.43,604.03,0.33110938]
[1746613731249,1.00909862,604.42,604.03,0.33110938]
[1746613731553,1.00909862,604.41,604.03,0.33110938]
[1746613732055,1.00909862,604.4,604.03,0.33110938]
[1746613732656,1.00909862,604.39,604.03,0.33110938]
[1746613733156,1.00909862,604.38,604.03,0.33110938]
[1746613733555,1.00909862,604.37,604.03,0.33110938]
[1746613733754,1.00909862,604.36,604.03,0.33110938]
[1746613734458,1.00909862,604.35,604.03,0.33110938]
[1746613735159,1.00909862,604.34,604.03,0.33110938]
[1746613735459,1.00909862,604.33,604.03,0.33110938]
[1746613735759,1.00909862,604.32,604.03,0.33110938]
[1746613736456,1.00909862,604.31,604.03,0.33110938]
[1746613736955,1.00909862,604.3,604.03,0.33110938]
[1746613737359,1.00909862,604.29,604.03,0.33110938]
[1746613738059,1.00909862,604.28,604.03,0.33110938]
[1746613738556,1.00909862,604.27,604.03,0.33110938]
[1746613739060,1.00909862,604.26,604.03,0.33110938]
[1746613739661,0.33049657,605.15,604.03,0.33110938]
[1746613739662,1.00909862,604.25,604.03,0.33110938]
[1746613740363,1.00909862,604.24,604.03,0.33110938]
[1746613740762,1.00909862,604.23,604.03,0.33110938]
[1746613741258,1.00909862,604.22,604.03,0.33110938]
[1746613741763,1.00909862,604.21,604.03,0.33110938]
[1746613742158,1.00909862,604.2,604.03,0.33110938]
[1746613742964,1.00909862,604.19,604.03,0.33110938]
[1746613743665,1.00909862,604.18,604.03,0.33110938]
[1746613744066,1.00909862,604.17,604.03,0.33110938]
[1746613744366,1.00909862,604.16,604.03,0.33110938]
[1746613744761,1.00909862,604.15,604.03,0.33110938]
[1746613745161,1.00909862,604.14,604.03,0.33110938]
[1746613745862,1.00909862,604.13,604.03,0.33110938]
[1746613746369,1.00909862,604.12,604.03,0.33110938]
[1746613746570,1.00909862,604.11,604.03,0.33110938]
[1746613747169,1.00909862,604.1,604.03,0.33110938]
[1746613747370,0.28801152,604.74,604.03,0.33110938]
[1746613747570,1.01384349,604.73,604.03,0.33110938]
[1746613748070,1.01384349,604.72,604.03,1.19710938]
[1746613748567,1.01384349,604.71,604.03,1.19710938]
[1746613749469,1.01384349,604.7,604.03,1.19710938]
[1746613749866,1.01384349,604.69,604.03,1.19710938]
[1746613750469,1.01384349,604.68,604.03,1.19710938]
[1746613750872,1.01384349,604.67,604.03,1.19710938]
[1746613751272,1.01384349,604.66,604.03,1.19710938]
[1746613751572,1.01384349,604.65,604.03,1.19710938]
[1746613752071,1.01384349,604.64,604.03,1.19710938]
[1746613752571,1.01384349,604.63,604.03,1.19710938]
[1746613752968,1.01384349,604.62,604.03,1.19710938]
[1746613753768,1.01384349,604.61,604.03,1.73010938]
[1746613753972,1.01384349,604.6,604.03,1.73010938]
[1746613754271,1.01384349,604.59,604.03,1.73010938]
[1746613754771,1.01384349,604.58,604.03,1.73010938]
[1746613755173,1.01384349,604.57,604.03,1.73010938]
[1746613755468,1.01384349,604.56,604.03,1.73010938]
[1746613755874,1.01384349,604.55,604.03,1.73010938]
[1746613756076,1.01384349,604.54,604.03,1.73010938]
[1746613756276,1.01384349,604.53,604.03,1.73010938]
[1746613757179,1.01384349,604.52,604.03,1.73010938]
[1746613758084,1.01384349,604.51,604.03,1.73010938]
[1746613758275,1.01384349,604.5,604.03,1.73010938]
[1746613758979,1.01384349,604.49,604.03,1.73010938]
[1746613759482,1.01384349,604.48,604.03,1.73010938]
[1746613760081,1.01384349,604.47,604.03,1.73010938]
[1746613760582,1.01384349,604.46,604.03,1.73010938]
[1746613760883,1.01384349,604.45,604.03,1.73010938]
[1746613761783,1.01384349,604.44,604.03,1.73010938]
[1746613762282,1.01384349,604.43,604.03,0.86410938]
[1746613762579,1.01384349,604.42,604.03,0.86410938]
[1746613762882,1.01384349,604.41,604.03,0.86410938]
[1746613763183,1.01384349,604.4,604.03,0.86410938]
[1746613763386,1.01384349,604.39,604.03,0.86410938]
[1746613763778,1.01384349,604.38,604.03,0.86410938]
[1746613764082,1.01384349,604.37,604.03,0.86410938]
[1746613764481,1.01384349,604.36,604.03,0.86410938]
[1746613764986,1.01384349,604.35,604.03,0.86410938]
[1746613765686,1.01384349,604.34,604.03,0.86410938]
[1746613765882,1.01384349,604.33,604.03,0.86410938]
[1746613766289,1.01384349,604.32,604.03,0.86410938]
[1746613766594,1.01384349,604.31,604.03,0.86410938]
[1746613766889,1.01384349,604.3,604.03,0.86410938]
[1746613767791,1.01384349,604.29,604.03,0.86410938]
[1746613768589,1.01384349,604.28,604.03,0.86410938]
[1746613768889,1.01384349,604.27,604.03,0.86410938]
[1746613769585,1.01384349,604.26,604.03,0.86410938]
[1746613769890,1.01384349,604.25,604.03,0.86410938]
[1746613770392,1.01384349,604.24,604.03,0.86410938]
[1746613770789,1.01384349,604.23,604.03,0.86410938]
[1746613771485,1.01384349,604.22,604.03,0.86410938]
[1746613772185,1.01384349,604.21,604.03,0.86410938]
[1746613772494,1.01384349,604.2,604.03,0.86410938]
[1746613772990,1.01384349,604.19,604.03,0.86410938]
[1746613773691,1.01384349,604.18,604.03,0.86410938]
[1746613774287,1.01384349,604.17,604.03,0.86410938]
[1746613774792,1.01384349,604.16,604.03,0.86410938]
[1746613774992,1.01384349,604.15,604.03,0.86410938]
[1746613775591,1.01384349,604.14,604.03,0.86410938]
[1746613775891,1.01384349,604.14,604.03,0.33110938]
[1746613776394,1.01384349,604.13,604.03,0.33110938]
[1746613776791,1.01384349,604.12,604.03,0.33110938]
[1746613777188,1.01384349,604.11,604.03,0.33110938]
[1746613777896,1.01384349,604.1,604.03,0.33110938]
[1746613778297,1.01384349,604.09,604.03,0.33110938]
[1746613780692,1.01384349,604.08,604.03,0.33110938]
[1746613781396,1.01384349,604.07,604.03,0.33110938]
[1746613782398,1.01384349,604.06,604.03,0.33110938]
[1746613783300,0.28802463,604.75,604.03,0.33110938]
[1746613783698,1.01429545,604.74,604.03,0.33110938]
[1746613784096,0.30412462,604.73,604.03,0.33110938]
[1746613784698,1.01429545,604.72,604.03,0.33110938]
[1746613785092,0.30412462,604.71,604.03,0.33110938]
[1746613785296,1.01429545,604.7,604.03,0.33110938]
[1746613785699,1.01429545,604.69,604.03,0.33110938]
[1746613785901,1.01429545,604.68,604.03,0.33110938]
[1746613786200,0.30412462,604.67,604.03,0.33110938]
[1746613786401,1.31842007,604.67,604.03,0.33110938]
[1746613786899,1.31842007,604.66,604.03,0.33110938]
[1746613787099,0.30412462,604.65,604.03,0.33110938]
[1746613787500,1.01429545,604.64,604.03,0.33110938]
[1746613787896,1.01429545,604.63,604.03,0.33110938]
[1746613788400,1.01429545,604.62,604.03,0.33110938]
[1746613788799,1.01429545,604.61,604.03,0.33110938]
[1746613789098,1.01429545,604.6,604.03,0.33110938]
[1746613789402,1.01429545,604.59,604.03,0.33110938]
[1746613789698,1.01429545,604.58,604.03,0.33110938]
[1746613790203,1.01429545,604.57,604.03,0.33110938]
[1746613791100,1.01429545,604.56,604.03,0.33110938]
[1746613791301,1.01429545,604.56,604.03,0.92910938]
[1746613791800,1.01429545,604.55,604.03,0.92910938]
[1746613792104,0.28798769,604.79,604.03,0.92910938]
[1746613792105,1.01429545,604.54,604.03,0.92910938]
[1746613792499,1.01429545,604.53,604.03,0.92910938]
[1746613793200,1.01429545,604.52,604.03,0.92910938]
[1746613793404,1.01429545,604.51,604.03,0.92910938]
[1746613793904,1.01429545,604.5,604.03,0.92910938]
[1746613794506,1.01429545,604.49,604.03,0.92910938]
[1746613794706,1.01429545,604.49,604.03,1.65010938]
[1746613794906,1.01429545,604.48,604.03,1.65010938]
[1746613795303,1.01429545,604.47,604.03,1.65010938]
[1746613796006,1.01429545,604.46,604.03,1.65010938]
[1746613796408,1.01429545,604.45,604.03,1.65010938]
[1746613796906,1.01429545,604.44,604.03,1.65010938]
[1746613797606,1.01429545,604.43,604.03,1.65010938]
[1746613798307,1.01429545,604.42,604.03,1.65010938]
[1746613798808,1.01429545,604.41,604.03,1.65010938]
[1746613799305,1.01429545,604.4,604.03,1.65010938]
[1746613799810,1.01429545,604.39,604.03,1.65010938]
[1746613800409,1.01429545,604.38,604.03,1.65010938]
[1746613800910,1.01429545,604.37,604.03,1.65010938]
[1746613801510,1.01429545,604.36,604.03,1.65010938]
[1746613802207,1.01429545,604.35,604.03,1.65010938]
[1746613802605,1.01429545,604.34,604.03,1.65010938]
[1746613803210,1.01429545,604.33,604.03,1.65010938]
[1746613803409,1.01429545,604.32,604.03,1.65010938]
[1746613804114,1.01429545,604.31,604.03,1.65010938]
[1746613804310,0.28796743,604.79,604.03,1.65010938]
[1746613804311,1.01429545,604.3,604.03,1.65010938]
[1746613804912,1.01429545,604.29,604.03,1.65010938]
[1746613805412,1.01429545,604.28,604.03,1.65010938]
[1746613805914,1.01429545,604.27,604.03,1.65010938]
[1746613806911,1.01429545,604.26,604.03,1.65010938]
[1746613807412,1.01429545,604.25,604.03,1.65010938]
[1746613808014,1.01429545,604.24,604.03,1.65010938]
[1746613808610,1.01429545,604.23,604.03,1.65010938]
[1746613809113,1.01429545,604.22,604.03,1.65010938]
[1746613810115,1.01429545,604.21,604.03,1.65010938]
[1746613810415,1.01429545,604.2,604.03,1.05210938]
[1746613810615,1.01429545,604.19,604.03,0.33110938]
[1746613811010,0.28798173,604.79,604.03,0.33110938]
[1746613811011,1.01429545,604.18,604.03,0.33110938]
[1746613811416,1.01429545,604.17,604.03,0.33110938]
[1746613811812,1.01429545,604.16,604.03,0.33110938]
[1746613812213,1.01429545,604.15,604.03,0.33110938]
[1746613812411,1.01429545,604.14,604.03,0.33110938]
[1746613812717,1.01429545,604.13,604.03,0.33110938]
[1746613813213,1.01429545,604.12,604.03,0.33110938]
[1746613814114,1.01429545,604.11,604.03,0.33110938]
[1746613815220,1.01429545,604.1,604.03,0.33110938]
[1746613815917,1.01429545,604.09,604.03,0.33110938]
[1746613816318,1.01429545,604.08,604.03,0.33110938]
[1746613816922,0.28800914,604.79,604.03,0.33110938]
[1746613817423,1.25508193,605.44,604.03,0.33110938]
[1746613817623,1.01346622,604.78,604.03,0.33110938]
[1746613818023,1.01346622,604.77,604.03,0.33110938]
[1746613818424,1.01346622,604.76,604.03,0.33110938]
[1746613819124,1.01346622,604.75,604.03,0.33110938]
[1746613820022,1.01346622,604.74,604.03,0.33110938]
[1746613820225,1.01346622,604.73,604.03,0.33110938]
[1746613820620,1.01346622,604.72,604.03,0.33110938]
[1746613821226,1.01346622,604.71,604.03,0.33110938]
[1746613821926,1.01346622,604.7,604.03,0.33110938]
[1746613822327,1.01346622,604.69,604.03,0.33110938]
[1746613823024,1.01346622,604.68,604.03,0.33110938]
[1746613823330,1.01346622,604.67,604.03,0.33110938]
[1746613824028,1.01346622,604.66,604.03,0.33110938]
[1746613824425,1.01346622,604.65,604.03,0.33110938]
[1746613824928,1.01346622,604.64,604.03,0.33110938]
[1746613825329,1.01346622,604.63,604.03,0.33110938]
[1746613825730,1.01346622,604.62,604.03,0.33110938]
[1746613826529,1.01346622,604.61,604.03,0.33110938]
[1746613827029,1.01346622,604.6,604.03,0.33110938]
[1746613827626,1.01346622,604.59,604.03,0.33110938]
[1746613828031,1.01346622,604.58,604.03,0.33110938]
[1746613828531,1.01346622,604.57,604.03,0.33110938]
[1746613828932,1.01346622,604.56,604.03,0.33110938]
[1746613829434,0.68683357,605.4,604.03,0.33110938]
[1746613829629,1.01337141,604.55,604.03,0.33110938]
[1746613830729,1.01337141,604.54,604.03,0.33110938]
[1746613831336,1.01337141,604.53,604.03,0.33110938]
[1746613831729,1.01337141,604.52,604.03,0.33110938]
[1746613832437,1.01337141,604.51,604.03,0.33110938]
[1746613833036,1.01337141,604.5,604.03,0.33110938]
[1746613833437,1.01337141,604.49,604.03,0.33110938]
[1746613834238,1.01337141,604.48,604.03,0.33110938]
[1746613834537,1.01337141,604.47,604.03,0.33110938]
[1746613835134,1.01337141,604.46,604.03,0.33110938]
[1746613835939,1.01337141,604.45,604.03,0.33110938]
[1746613836140,1.01337141,604.44,604.03,0.33110938]
[1746613836540,1.01337141,604.43,604.03,0.33110938]
[1746613837140,1.01337141,604.42,604.03,0.33110938]
[1746613837936,1.01337141,604.41,604.03,0.33110938]
[1746613838241,1.01337141,604.4,604.03,0.33110938]
[1746613838640,1.01337141,604.39,604.03,0.33110938]
[1746613839042,1.01337141,604.38,604.03,0.33110938]
[1746613839842,1.01337141,604.37,604.03,0.33110938]
[1746613840343,1.01337141,604.36,604.03,0.33110938]
[1746613840643,1.01337141,604.35,604.03,0.33110938]
[1746613841244,1.01337141,604.34,604.03,0.33110938]
[1746613841837,1.01337141,604.33,604.03,0.33110938]
[1746613842348,0.68701047,605.95,604.03,0.33110938]
[1746613842646,1.01136792,605.14,604.03,0.33110938]
[1746613842839,1.3154032,605.14,604.03,0.33110938]
[1746613843043,0.30403528,605.13,604.03,0.33110938]
[1746613843446,1.01136792,605.12,604.03,0.33110938]
[1746613843847,0.30403528,605.11,604.03,0.33110938]
[1746613844146,1.01136792,605.1,604.03,0.33110938]
[1746613844345,0.30403528,605.09,604.03,0.33110938]
[1746613844747,1.01136792,605.08,604.03,0.33110938]
[1746613844948,0.30403528,605.07,604.03,0.33110938]
[1746613845348,1.01136792,605.06,604.03,0.33110938]
[1746613845548,0.30403528,605.05,604.03,0.33110938]
[1746613846049,1.01136792,605.04,604.03,0.33110938]
[1746613846442,1.01136792,605.03,604.03,0.33110938]
[1746613846644,1.31543944,605.03,604.03,0.33110938]
[1746613846845,0.30407152,605.02,604.03,1.00110938]
[1746613847047,1.01136792,605.01,604.03,1.00110938]
[1746613847550,1.31543944,605.0,604.03,1.00110938]
[1746613847851,1.31543944,604.99,604.03,1.00110938]
[1746613848249,1.01136792,604.99,604.03,1.00110938]
[1746613848650,1.01136792,604.98,604.03,1.00110938]
[1746613849052,1.01136792,604.97,604.03,1.00110938]
[1746613849250,1.01136792,604.96,604.03,1.00110938]
[1746613849651,1.01136792,604.95,604.03,1.00110938]
[1746613850352,1.31544814,604.94,604.03,1.00110938]
[1746613850551,0.30408022,604.93,604.03,1.00110938]
[1746613850752,1.31544814,604.93,604.03,1.00110938]
[1746613850950,1.01136792,604.92,604.03,1.00110938]
[1746613851348,1.01136792,604.91,604.03,1.00110938]
[1746613852252,1.01136792,604.9,604.03,1.00110938]
[1746613852852,1.31548752,604.89,604.03,1.00110938]
[1746613853251,1.31548752,604.88,604.03,1.00110938]
[1746613853652,0.3041196,604.87,604.03,1.00110938]
[1746613853849,0.59203223,604.87,604.03,1.00110938]
[1746613854052,1.01136792,604.86,604.03,1.00110938]
[1746613854353,1.31548752,604.85,604.03,1.00110938]
[1746613854648,1.01136792,604.84,604.03,1.00110938]
[1746613854847,1.31548752,604.84,604.03,1.00110938]
[1746613855052,1.01136792,604.83,604.03,1.00110938]
[1746613855352,1.31548752,604.83,604.03,1.00110938]
[1746613855651,1.01136792,604.82,604.03,1.00110938]
[1746613855852,1.01136792,604.81,604.03,1.00110938]
[1746613856355,1.01136792,604.8,604.03,1.00110938]
[1746613856754,1.29928889,604.8,604.03,1.00110938]
[1746613856955,0.30413421,604.79,604.03,1.00110938]
[1746613857156,1.01136792,604.78,604.03,1.00110938]
[1746613858051,1.01136792,604.77,604.03,1.00110938]
[1746613858456,1.01136792,604.76,604.03,1.00110938]
[1746613858858,1.01136792,604.75,604.03,1.00110938]
[1746613859559,0.28792097,604.8,604.03,1.00110938]
[1746613859759,1.01311646,604.74,604.03,1.00110938]
[1746613860060,1.01311646,604.73,604.03,1.00110938]
[1746613860858,1.01311646,604.73,604.03,0.33110938]
[1746613861163,1.01311646,604.72,604.03,0.33110938]
[1746613861761,1.01311646,604.71,604.03,0.33110938]
[1746613862165,1.01311646,604.7,604.03,0.33110938]
[1746613862666,1.01311646,604.69,604.03,0.33110938]
[1746613863066,1.01311646,604.68,604.03,0.33110938]
[1746613863362,1.01311646,604.67,604.03,0.33110938]
[1746613863964,1.01311646,604.66,604.03,0.33110938]
[1746613864264,1.01311646,604.65,604.03,0.33110938]
[1746613864564,1.01311646,604.64,604.03,0.33110938]
[1746613865766,1.01311646,604.63,604.03,0.33110938]
[1746613866467,1.01311646,604.62,604.03,0.33110938]
[1746613866960,1.01311646,604.61,604.03,0.33110938]
[1746613867268,1.01311646,604.6,604.03,0.33110938]
[1746613867666,1.01311646,604.59,604.03,0.33110938]
[1746613868367,1.01311646,604.58,604.03,0.33110938]
[1746613869266,1.01311646,604.57,604.03,0.33110938]
[1746613869868,1.01311646,604.56,604.03,0.33110938]
[1746613870470,1.01311646,604.55,604.03,0.33110938]
[1746613870868,1.01311646,604.54,604.03,0.33110938]
[1746613871270,1.01311646,604.53,604.03,0.33110938]
[1746613871970,1.01311646,604.52,604.03,0.33110938]
[1746613872470,1.01311646,604.51,604.03,0.33110938]
[1746613872770,1.01311646,604.5,604.03,0.33110938]
[1746613873670,1.01311646,604.49,604.03,0.33110938]
[1746613874071,1.01311646,604.48,604.03,0.33110938]
[1746613874667,1.01311646,604.47,604.03,0.33110938]
[1746613875173,1.01311646,604.46,604.03,0.33110938]
[1746613875574,1.01311646,604.45,604.03,0.33110938]
[1746613876369,1.01311646,604.44,604.03,0.33110938]
[1746613876669,1.01311646,604.43,604.03,0.33110938]
[1746613877073,1.01311646,604.42,604.03,0.33110938]
[1746613877573,1.01311646,604.41,604.03,0.33110938]
[1746613877769,1.01311646,604.4,604.03,0.33110938]
[1746613878373,1.01311646,604.39,604.03,0.33110938]
[1746613878875,1.01311646,604.38,604.03,0.33110938]
[1746613879477,1.01311646,604.37,604.03,0.33110938]
[1746613879976,1.01311646,604.36,604.03,0.33110938]
[1746613880472,1.01311646,604.35,604.03,0.33110938]
[1746613881274,1.01311646,604.34,604.03,0.33110938]
[1746613881578,1.01311646,604.33,604.03,0.33110938]
[1746613882273,1.01311646,604.32,604.03,0.33110938]
[1746613882574,1.01311646,604.31,604.03,0.33110938]
[1746613883280,1.01311646,604.3,604.03,0.33110938]
[1746613883682,1.01311646,604.29,604.03,0.33110938]
[1746613884378,1.01311646,604.28,604.03,0.33110938]
[1746613884680,1.01311646,604.27,604.03,0.33110938]
[1746613885883,1.01311646,604.26,604.03,0.33110938]
[1746613886178,1.01311646,604.25,604.03,0.33110938]
[1746613886782,1.01311646,604.24,604.03,0.33110938]
[1746613887187,1.01311646,604.23,604.03,0.33110938]
[1746613887785,1.01311646,604.22,604.03,0.33110938]
[1746613888785,1.01311646,604.21,604.03,0.33110938]
[1746613889288,1.01311646,604.2,604.03,0.33110938]
[1746613889886,1.0119144,604.19,604.03,0.33110938]
[1746613890286,1.0119144,604.18,604.03,0.33110938]
[1746613890887,1.0119144,604.17,604.03,0.33110938]
[1746613891488,1.0119144,604.16,604.03,0.33110938]
[1746613892187,1.0119144,604.15,604.03,0.33110938]
[1746613892883,1.0119144,604.14,604.03,0.33110938]
[1746613893589,1.0119144,604.13,604.03,0.33110938]
[1746613893991,0.28803536,604.69,604.03,0.33110938]
[1746613894395,1.01204505,604.68,604.03,0.33110938]
[1746613894893,1.01204505,604.67,604.03,0.33110938]
[1746613895494,1.01204505,604.66,604.03,0.33110938]
[1746613895795,1.01204505,604.65,604.03,0.33110938]
[1746613896193,1.01204505,604.64,604.03,0.33110938]
[1746613896593,1.01204505,604.63,604.03,0.33110938]
[1746613897296,1.01204505,604.62,604.03,0.33110938]
[1746613897998,1.01204505,604.61,604.03,0.33110938]
[1746613898900,1.01204505,604.6,604.03,0.33110938]
[1746613899498,1.01204505,604.59,604.03,0.33110938]
[1746613899899,1.01204505,604.58,604.03,0.33110938]
[1746613900498,1.01204505,604.57,604.03,0.33110938]
[1746613901404,1.01204505,604.57,604.03,0.97310938]
[1746613902503,1.01204505,604.56,604.03,0.97310938]
[1746613902997,1.01204505,604.55,604.03,0.97310938]
[1746613903399,1.01204505,604.54,604.03,0.97310938]
[1746613903806,1.01204505,604.53,604.03,0.97310938]
[1746613904206,1.01204505,604.52,604.03,0.97310938]
[1746613904401,1.01204505,604.51,604.03,0.97310938]
[1746613905009,1.01204505,604.5,604.03,0.97310938]
[1746613905404,1.01204505,604.49,604.03,0.97310938]
[1746613906110,1.01204505,604.48,604.03,0.97310938]
[1746613906511,1.01204505,604.47,604.03,0.97310938]
[1746613907111,1.01204505,604.46,604.03,0.97310938]
[1746613907312,1.01204505,604.46,604.03,0.642]
[1746613907612,1.01204505,604.45,604.03,0.642]
[1746613908115,1.01204505,604.44,604.03,0.642]
[1746613908512,1.01204505,604.43,604.03,0.642]
[1746613909312,1.01204505,604.42,604.03,0.642]
[1746613909513,1.01204505,604.41,604.03,0.642]
[1746613909915,1.01204505,604.4,604.03,0.642]
[1746613910110,1.01204505,604.39,604.03,0.642]
[1746613910610,1.01204505,604.38,604.03,0.642]
[1746613910815,1.01204505,604.37,604.03,0.642]
[1746613911318,1.01204505,604.36,604.03,0.642]
[1746613911616,1.01204505,604.35,604.03,0.642]
[1746613912419,1.01204505,604.34,604.01,0.647]
[1746613912915,1.01204505,604.33,604.01,0.647]
[1746613913319,1.01204505,604.32,604.01,0.647]
[1746613913910,1.01204505,604.31,604.01,0.647]
[1746613914417,1.01204505,604.3,604.01,0.647]
[1746613914916,1.01204505,604.29,604.01,0.647]
[1746613915314,1.01204505,604.28,604.01,0.647]
[1746613915614,1.01204505,604.27,604.01,0.647]
[1746613916216,1.01204505,604.26,604.01,0.647]
[1746613916717,1.01204505,604.25,604.01,0.647]
[1746613917118,1.01204505,604.24,604.01,0.647]
[1746613918019,1.01204505,604.23,604.01,0.647]
[1746613918520,1.01204505,604.22,604.01,0.647]
[1746613918917,1.01204505,604.21,604.01,0.647]
[1746613919417,1.01204505,604.2,604.01,0.647]
[1746613920123,1.01204505,604.19,604.01,0.647]
[1746613920624,1.01204505,604.18,604.01,0.647]
[1746613921119,1.01204505,604.17,604.01,0.647]
[1746613921825,1.01204505,604.16,604.01,0.647]
[1746613922325,1.01204505,604.15,604.01,0.647]
[1746613922926,1.01204505,604.14,604.01,0.647]
[1746613923325,1.01204505,604.13,604.01,0.647]
[1746613923726,1.01204505,604.12,604.01,0.647]
[1746613924123,1.01204505,604.11,604.01,0.647]
[1746613924428,1.01204505,604.1,604.01,0.647]
[1746613924826,1.01204505,604.09,604.01,0.647]
[1746613925226,1.01204505,604.08,604.01,0.647]
[1746613925628,1.01204505,604.07,604.01,0.647]
[1746613925829,1.01204505,604.07,603.85,0.693]
[1746613926230,1.01204505,604.06,603.85,0.693]
[1746613926629,1.01204505,604.05,603.85,0.693]
[1746613927129,1.01204505,604.04,603.85,0.693]
[1746613927530,0.28805801,604.56,603.85,0.693]
[1746613928027,0.30423002,604.55,603.85,0.693]
[1746613928232,1.01176011,604.54,603.85,0.693]
[1746613928427,1.01176011,604.54,603.86,0.722]
[1746613928634,0.30423002,604.53,603.86,0.722]
[1746613928831,1.01176011,604.52,603.86,0.722]
[1746613929032,0.30423002,604.51,603.86,0.722]
[1746613929332,1.01176011,604.5,603.86,0.722]
[1746613929931,1.01176011,604.49,603.86,0.722]
[1746613930131,1.01176011,604.48,603.86,0.722]
[1746613930632,1.01176011,604.47,603.86,0.722]
[1746613930828,1.01176011,604.46,603.86,0.722]
[1746613931231,1.01176011,604.45,603.86,0.722]
[1746613931935,1.01176011,604.44,603.86,0.722]
[1746613932235,1.01176011,604.43,603.86,0.722]
[1746613932532,1.01176011,604.42,603.86,0.722]
[1746613932733,1.01176011,604.41,603.86,0.722]
[1746613933433,1.01176011,604.4,603.86,0.722]
[1746613934033,1.01176011,604.39,603.86,0.722]
[1746613934634,1.01176011,604.38,603.86,0.722]
[1746613935028,1.01176011,604.37,603.86,0.722]
[1746613935429,1.01176011,604.36,603.86,0.722]
[1746613935734,1.01176011,604.35,603.86,0.722]
[1746613936434,1.01176011,604.34,603.86,0.722]
[1746613937031,1.01176011,604.33,603.86,0.722]
[1746613937731,1.01176011,604.32,603.86,0.722]
[1746613938336,1.01176011,604.31,603.86,0.722]
[1746613938535,1.01176011,604.3,603.86,0.722]
[1746613938735,1.01176011,604.3,603.87,0.542]
[1746613939238,1.01176011,604.29,603.87,0.542]
[1746613939531,1.01176011,604.28,603.87,0.542]
[1746613939835,1.01176011,604.27,603.87,0.542]
[1746613940337,1.01176011,604.26,603.87,0.542]
[1746613940536,1.01176011,604.25,603.87,0.542]
[1746613941349,1.01176011,604.24,603.87,0.542]
[1746613941838,1.01176011,604.23,603.87,0.542]
[1746613942438,1.01176011,604.22,603.87,0.542]
[1746613944040,1.01176011,604.21,603.87,0.542]
[1746613945035,1.01176011,604.2,603.87,0.542]
[1746613945541,1.01176011,604.19,603.87,0.542]
[1746613946141,1.01176011,604.18,603.87,0.542]
[1746613947037,1.01176011,604.17,603.87,0.542]
[1746613947741,1.01176011,604.16,603.87,0.542]
[1746613948141,1.01176011,604.15,603.87,0.542]
[1746613948742,1.01176011,604.14,603.87,0.542]
[1746613948944,1.01191424,604.13,603.87,0.542]
[1746613949541,1.01191424,604.12,603.87,0.542]
[1746613950545,1.01191424,604.11,603.87,0.542]
[1746613950842,1.01191424,604.1,603.87,0.542]
[1746613951243,1.01191424,604.09,603.87,0.542]
[1746613952147,1.01191424,604.08,603.87,0.542]
[1746613952449,1.01191424,604.07,603.87,0.542]
[1746613952950,1.01191424,604.06,603.87,0.542]
[1746613953551,1.01191424,604.05,603.87,0.542]
[1746613953850,1.01191424,604.04,603.87,0.542]
[1746613954452,1.01191424,604.03,603.87,0.542]
[1746613955150,1.01191424,604.02,603.87,0.542]
[1746613955345,1.01191424,604.01,603.87,0.542]
[1746613956050,1.01191424,604.0,603.87,0.542]
[1746613956351,1.01191424,603.99,603.87,0.542]
[1746613956550,1.01191424,603.98,603.87,0.542]
[1746613957052,1.01191424,603.97,603.87,0.542]
[1746613957853,1.01191424,603.96,603.87,0.542]
[1746613958154,0.2880747,604.6,603.87,0.542]
[1746613958550,1.31692351,604.59,603.87,0.542]
[1746613958755,0.30422879,604.58,603.87,0.542]
[1746613958954,1.01269472,604.57,603.87,0.542]
[1746613959457,0.30422224,604.56,603.87,0.542]
[1746613959657,1.01269472,604.55,603.87,0.542]
[1746613960150,0.30422224,604.54,603.87,0.542]
[1746613960352,1.31691696,604.54,603.87,0.542]
[1746613960552,1.01269472,604.53,603.87,0.542]
[1746613960751,1.31691696,604.53,603.87,0.542]
[1746613961056,0.30422224,604.52,603.87,0.542]
[1746613961258,1.01269472,604.53,603.88,0.654]
[1746613961458,1.01269472,604.52,603.88,0.654]
[1746613961660,1.01269472,604.51,603.88,0.654]
[1746613961858,0.30421981,604.5,603.88,0.654]
[1746613962158,0.30421981,604.5,603.89,0.709]
[1746613962859,1.01269472,604.51,603.89,0.709]
[1746613964859,1.01269472,604.5,603.89,0.709]
[1746613965555,1.01269472,604.49,603.89,0.709]